bitfinex/quotes_SOLUSD_20260109
["timestamp","ask_amount","ask_price","bid_price","bid_amount"]
[1767921876692,3.51079687,138.48,138.44,7.22334585]
[1767921876908,3.51079687,138.48,138.44,7.90512381]
[1767921877212,10.73214459,138.48,138.44,7.90512381]
[1767921877506,3.51079687,138.48,138.44,7.90512381]
[1767921877910,3.51079687,138.48,138.45,0.68177796]
[1767921878080,3.51079687,138.49,138.46,0.68177796]
[1767921878806,20.40046275,138.5,138.46,0.68177796]
[1767921878983,3.51079687,138.49,138.46,0.68177796]
[1767921880300,20.40046275,138.5,138.46,7.9040751]
[1767921880509,3.51079687,138.49,138.46,7.9040751]
[1767921881302,3.51079687,138.49,138.46,0.68177796]
[1767921882986,20.40046275,138.5,138.46,0.68177796]
[1767921883187,3.51079687,138.49,138.46,0.68177796]
[1767921883704,3.51079687,138.48,138.46,0.68177796]
[1767921884313,20.40046275,138.5,138.46,0.68177796]
[1767921884510,3.51079687,138.48,138.46,0.68177796]
[1767921887333,7.21969532,138.51,138.47,0.68177796]
[1767921887635,3.51079687,138.48,138.46,0.68177796]
[1767921888134,3.51079687,138.49,138.47,0.68177796]
[1767921889538,7.21932119,138.52,138.47,7.22169627]
[1767921889728,10.73011806,138.52,138.47,10.73249314]
[1767921889926,31.22458837,138.55,138.48,3.51079687]
[1767921890124,4.16141449,138.52,138.49,0.68177796]
[1767921890430,4.16141449,138.52,138.48,0.68177796]
[1767921891031,3.51079687,138.51,138.48,0.68177796]
[1767921896635,3.51079687,138.5,138.48,0.68177796]
[1767921897423,3.68343542,138.51,138.48,0.68177796]
[1767921899150,7.39250389,138.51,138.48,0.68177796]
[1767921899323,10.90330076,138.51,138.48,0.68177796]
[1767921901743,4.1566347,138.5,138.48,0.68177796]
[1767921902051,3.51079687,138.49,138.46,0.68177796]
[1767921902246,3.51079687,138.49,138.47,0.68177796]
[1767921902752,0.18200837,138.47,138.42,0.67763642]
[1767921903050,3.51079687,138.45,138.42,0.67763642]
[1767921903662,3.51079687,138.44,138.42,0.67763642]
[1767921904740,3.51079687,138.43,138.41,0.67763642]
[1767921909448,3.51079687,138.43,138.4,0.1]
[1767921909660,3.51079687,138.43,138.4,0.80796374]
[1767921909840,3.70180585,138.43,138.4,0.80796374]
[1767921912656,0.19100898,138.43,138.4,0.80796374]
[1767921912957,7.93941273,138.45,138.41,0.70796374]
[1767921913140,3.51079687,138.44,138.41,0.70796374]
[1767921913340,21.11876646,138.46,138.41,0.70796374]
[1767921913563,3.51079687,138.45,138.41,0.70796374]
[1767921914255,3.51079687,138.45,138.42,7.93235327]
[1767921914464,3.51079687,138.45,138.43,0.70796374]
[1767921915163,17.40713703,138.46,138.43,0.70796374]
[1767921915847,16.69079687,138.46,138.43,0.70796374]
[1767921916172,3.51079687,138.46,138.43,0.70796374]
[1767921917563,3.51079687,138.46,138.43,7.93166552]
[1767921917867,3.51079687,138.46,138.44,0.70796374]
[1767921920574,10.73275218,138.47,138.44,0.70796374]
[1767921922068,3.51079687,138.46,138.44,0.70796374]
[1767921922368,3.51079687,138.45,138.42,7.93218119]
[1767921922871,3.51079687,138.45,138.43,0.70796374]
[1767921923071,3.51079687,138.46,138.43,0.70796374]
[1767921924873,3.51079687,138.46,138.4,0.80796374]
[1767921924874,4.22104936,138.44,138.4,0.80796374]
[1767921925072,3.51079687,138.42,138.4,0.80796374]
[1767921925574,3.51079687,138.43,138.4,0.80796374]
[1767921928769,11.44457043,138.44,138.4,0.80796374]
[1767921929274,3.6243969,138.43,138.4,0.1]
[1767921929475,3.63030375,138.41,138.37,0.70796374]
[1767921929659,0.1243062,138.39,138.35,7.93587022]
[1767921929852,0.1243062,138.39,138.36,0.70796374]
[1767921930469,3.63510307,138.39,138.36,0.70796374]
[1767921931188,0.1243062,138.39,138.34,70.03635492]
[1767921931356,0.1243062,138.39,138.34,73.54715179]
[1767921931557,0.1243062,138.39,138.35,0.70796374]
[1767921932769,7.35026576,138.39,138.35,0.70796374]
[1767921932973,10.86106263,138.39,138.35,0.70796374]
[1767921934276,0.12901,138.37,138.33,0.65501516]
[1767921934473,0.12901,138.37,138.33,7.88379416]
[1767921935472,9.6050421,138.37,138.33,0.65501516]
[1767921936490,2.83903605,138.36,138.33,0.65501516]
[1767921936989,2.83903605,138.36,138.32,21.06457864]
[1767921937489,2.83903605,138.36,138.31,0.65501516]
[1767921937490,0.1336202,138.35,138.31,0.65501516]
[1767921937693,7.85278053,138.36,138.32,0.65501516]
[1767921937874,18.0680649,138.37,138.33,0.65501516]
[1767921937875,7.85215318,138.37,138.33,0.65501516]
[1767921938073,10.10115913,138.37,138.33,0.65501516]
[1767921938781,7.22659298,138.38,138.34,0.65501516]
[1767921939086,7.32559298,138.38,138.34,0.65501516]
[1767921939287,9.57459893,138.38,138.34,0.65501516]
[1767921940574,2.24900595,138.37,138.34,0.65501516]
[1767921941079,2.86874595,138.37,138.34,0.65501516]
[1767921941389,10.10059893,138.38,138.34,0.65501516]
[1767921941786,7.85159298,138.38,138.34,0.65501516]
[1767921941968,10.10059893,138.38,138.34,0.65501516]
[1767921942691,0.61974,138.36,138.33,7.88406275]
[1767921942996,0.61974,138.36,138.33,0.65501516]
[1767921943669,0.61974,138.36,138.32,7.88442753]
[1767921943870,0.61974,138.36,138.33,7.88403272]
[1767921945308,7.22700462,138.37,138.33,7.88403272]
[1767921945613,9.47601057,138.37,138.33,7.88403272]
[1767921946982,10.10066639,138.38,138.34,0.65501516]
[1767921947304,7.85166044,138.38,138.34,0.65501516]
[1767921947681,10.10066639,138.38,138.34,0.65501516]
[1767921948076,7.85166044,138.38,138.34,0.65501516]
[1767921948281,10.10066639,138.38,138.34,0.65501516]
[1767921948478,7.85166044,138.38,138.34,0.65501516]
[1767921948677,0.099,138.37,138.34,0.65501516]
[1767921948902,2.86874595,138.36,138.32,0.65501516]
[1767921949103,7.84739738,138.36,138.32,0.65501516]
[1767921949305,10.09640333,138.36,138.32,0.65501516]
[1767921949806,2.35321335,138.35,138.32,0.65501516]
[1767921951112,9.58147421,138.35,138.32,0.65501516]
[1767921952307,2.35321335,138.35,138.32,0.65501516]
[1767921952712,0.1042074,138.35,138.32,0.65501516]
[1767921952892,7.85276219,138.36,138.32,0.65501516]
[1767921953091,10.10176814,138.36,138.32,0.65501516]
[1767921954304,10.10121093,138.37,138.33,0.65501516]
[1767921954600,9.47621093,138.37,138.33,0.65501516]
[1767921955803,7.32620498,138.37,138.33,0.65501516]
[1767921956001,0.099,138.37,138.34,0.65501516]
[1767921956390,0.61974,138.36,138.32,7.8844637]
[1767921956912,0.61974,138.36,138.33,0.65501516]
[1767921957106,7.85234524,138.37,138.33,0.65501516]
[1767921957316,10.10135119,138.37,138.33,0.65501516]
[1767921958190,7.85234524,138.37,138.33,0.65501516]
[1767921958390,2.24900595,138.36,138.33,0.65501516]
[1767921959102,10.10135119,138.37,138.33,0.65501516]
[1767921960310,7.85234524,138.37,138.33,0.65501516]
[1767921960506,10.10135119,138.37,138.33,0.65501516]
[1767921961516,10.07135119,138.37,138.33,0.65501516]
[1767921962503,7.82234524,138.37,138.33,0.65501516]
[1767921962698,10.07135119,138.37,138.33,0.65501516]
[1767921963398,2.24900595,138.34,138.3,0.68877282]
[1767921963729,2.34800595,138.34,138.3,0.68877282]
[1767921964017,2.24900595,138.33,138.3,0.68877282]
[1767921964705,2.24900595,138.33,138.31,0.68877282]
[1767921965621,7.32756779,138.34,138.31,0.68877282]
[1767921965799,2.24900595,138.33,138.31,0.68877282]
[1767921968017,7.32760628,138.34,138.31,0.68877282]
[1767921968018,2.34800595,138.34,138.31,0.68877282]
[1767921969318,0.099,138.34,138.31,0.68877282]
[1767921969499,2.34800595,138.34,138.31,0.68877282]
[1767921970717,9.57664835,138.34,138.31,0.68877282]
[1767921972219,7.3276424,138.34,138.31,0.68877282]
[1767921972522,9.57664835,138.34,138.31,0.68877282]
[1767921972918,7.2286424,138.34,138.31,0.68877282]
[1767921973116,2.24900595,138.34,138.31,0.68877282]
[1767921973318,9.47723899,138.35,138.33,0.69625026]
[1767921973615,10.14553136,138.35,138.31,0.69625026]
[1767921974026,7.89652541,138.35,138.3,2.24900595]
[1767921974317,10.14488068,138.36,138.3,2.24900595]
[1767921974494,10.14488068,138.36,138.31,2.24900595]
[1767921974696,0.66829237,138.36,138.31,2.24900595]
[1767921974908,0.66829237,138.36,138.32,2.24900595]
[1767921975710,0.66829237,138.36,138.32,9.47817308]
[1767921975904,23.3444773,138.37,138.33,0.69625026]
[1767921976512,0.66829237,138.36,138.33,0.69625026]
[1767921977319,13.86829237,138.37,138.34,0.69625026]
[1767921977511,7.22673906,138.38,138.34,0.69625026]
[1767921977512,10.14403738,138.38,138.34,0.69625026]
[1767921977725,7.89503143,138.38,138.34,0.69625026]
[1767921977905,10.14403738,138.38,138.34,0.69625026]
[1767921978322,5.34178358,138.37,138.34,0.69625026]
[1767921978501,10.14403738,138.38,138.34,0.69625026]
[1767921978701,5.34176653,138.37,138.35,0.69625026]
[1767921978905,0.66829237,138.38,138.35,0.69625026]
[1767921979106,5.34177187,138.37,138.35,0.69625026]
[1767921979324,0.66829237,138.38,138.35,0.69625026]
[1767921979524,5.34348971,138.37,138.35,0.69625026]
[1767921979723,0.66829237,138.38,138.35,0.69625026]
[1767921979910,0.66829237,138.4,138.36,0.69625026]
[1767921980219,5.34341807,138.39,138.36,0.69625026]
[1767921980425,0.66829237,138.4,138.36,0.69625026]
[1767921980724,5.27378601,138.39,138.36,0.69625026]
[1767921980922,0.66829237,138.39,138.36,0.69625026]
[1767921981109,10.1434155,138.39,138.35,0.69625026]
[1767921981309,7.52275843,138.38,138.35,0.69625026]
[1767921981511,2.24900595,138.38,138.35,0.69625026]
[1767921981834,0.66829237,138.39,138.36,0.69625026]
[1767921982026,5.27372493,138.38,138.36,0.69625026]
[1767921982208,10.14331586,138.39,138.36,0.69625026]
[1767921982410,5.27362131,138.38,138.36,0.69625026]
[1767921982628,10.14331586,138.39,138.36,0.69625026]
[1767921982819,5.27334708,138.38,138.36,0.69625026]
[1767921983020,10.14331586,138.39,138.36,0.69625026]
[1767921983220,5.27334374,138.38,138.36,0.69625026]
[1767921983417,10.14331586,138.39,138.36,0.69625026]
[1767921983625,5.27294597,138.38,138.36,0.69625026]
[1767921983827,10.14331586,138.39,138.36,0.69625026]
[1767921984007,5.27294356,138.38,138.36,0.69625026]
[1767921984340,10.14331586,138.39,138.36,0.69625026]
[1767921984619,5.27289692,138.38,138.36,0.69625026]
[1767921984826,10.14331586,138.39,138.36,0.69625026]
[1767921985000,5.27289692,138.38,138.36,0.69625026]
[1767921985204,10.14331586,138.39,138.36,0.69625026]
[1767921985418,5.27289919,138.38,138.36,0.69625026]
[1767921985619,2.24900595,138.38,138.36,0.69625026]
[1767921986130,2.91729832,138.39,138.36,0.69625026]
[1767921988226,0.66829237,138.36,138.34,7.22824622]
[1767921988428,2.91729832,138.36,138.33,7.22876735]
[1767921988632,0.66829237,138.38,138.34,7.92453558]
[1767921988809,2.91729832,138.38,138.34,7.92453558]
[1767921989629,0.66829237,138.38,138.34,7.92453558]
[1767921990125,2.91729832,138.38,138.35,0.69625026]
[1767921992731,2.91729832,138.38,138.34,7.88516601]
[1767921993032,0.653755,138.37,138.34,7.88516601]
[1767921994136,2.90276095,138.37,138.34,7.88516601]
[1767921996529,4.16775779,138.37,138.34,7.88516601]
[1767921998937,0.653755,138.37,138.34,7.88516601]
[1767921999138,4.16775779,138.37,138.34,7.88516601]
[1767921999534,0.653755,138.39,138.35,0.65688069]
[1767921999833,4.16775779,138.39,138.35,0.65688069]
[1767922000022,0.653755,138.38,138.35,0.65688069]
[1767922000224,0.653755,138.37,138.34,21.08516601]
[1767922000424,4.16775779,138.37,138.34,21.08516601]
[1767922000637,4.16775779,138.37,138.34,13.85688069]
[1767922001738,4.16775779,138.37,138.34,21.08544572]
[1767922002718,13.2,138.41,138.35,0.65688069]
[1767922002719,4.16775779,138.39,138.35,0.65688069]
[1767922002918,5.26072268,138.38,138.35,0.65688069]
[1767922003120,4.16775779,138.4,138.35,0.65688069]
[1767922003437,9.42796962,138.39,138.35,0.65688069]
[1767922003640,4.16775779,138.39,138.35,0.65688069]
[1767922003843,4.16775779,138.39,138.36,7.2275224]
[1767922004038,0.653755,138.39,138.36,7.2275224]
[1767922004346,0.653755,138.39,138.36,7.88440309]
[1767922004536,4.16775779,138.39,138.36,7.88440309]
[1767922005246,0.653755,138.39,138.36,7.88440309]
[1767922005548,0.653755,138.39,138.36,0.65688069]
[1767922006243,0.653755,138.38,138.35,7.88467342]
[1767922006448,11.39373624,138.39,138.35,7.88467342]
[1767922006627,11.39373624,138.39,138.33,7.88563703]
[1767922006628,0.653755,138.36,138.33,7.88563703]
[1767922009132,0.653755,138.36,138.33,7.22875634]
[1767922010050,0.653755,138.36,138.33,7.88563703]
[1767922011953,0.653755,138.35,138.32,21.08626148]
[1767922012130,0.653755,138.35,138.32,7.88626148]
[1767922012330,0.653755,138.35,138.32,7.22938079]
[1767922014529,0.653755,138.34,138.31,7.88678029]
[1767922014930,0.653755,138.34,138.31,7.2298996]
[1767922016034,0.653755,138.34,138.31,7.88678029]
[1767922018865,0.653755,138.34,138.31,7.2298996]
[1767922020272,0.653755,138.34,138.31,7.88678029]
[1767922022978,4.16775779,138.34,138.31,7.88678029]
[1767922023154,0.653755,138.34,138.31,7.88678029]
[1767922024052,0.68078823,138.33,138.3,7.23065798]
[1767922024272,4.19479102,138.33,138.3,7.23065798]
[1767922025470,0.68078823,138.33,138.3,7.23065798]
[1767922025777,0.68078823,138.33,138.3,7.93199609]
[1767922025967,0.68078823,138.33,138.3,7.23065798]
[1767922026279,0.68078823,138.32,138.3,7.23065798]
[1767922026480,0.68078823,138.31,138.29,19.56997806]
[1767922027071,4.19479102,138.31,138.29,12.33879855]
[1767922027252,0.66416149,138.3,138.29,12.33879855]
[1767922027457,0.66416149,138.29,138.27,0.4303107]
[1767922028175,4.17816428,138.29,138.27,0.4303107]
[1767922028376,0.66416149,138.28,138.27,0.4303107]
[1767922028677,0.32351028,138.27,138.18,40.05263886]
[1767922028973,16.71400279,138.28,138.21,7.23536647]
[1767922028974,0.66075498,138.24,138.21,7.23536647]
[1767922029176,0.66075498,138.24,138.21,7.91781479]
[1767922029381,0.32351028,138.26,138.22,0.68244832]
[1767922030160,0.32351028,138.26,138.23,7.23431961]
[1767922030358,4.17816428,138.27,138.23,7.91676793]
[1767922030962,0.66416149,138.3,138.24,0.68244832]
[1767922031168,18.21798633,138.31,138.24,0.68244832]
[1767922031169,3.83751307,138.29,138.24,0.68244832]
[1767922031377,0.66075498,138.28,138.23,7.91676793]
[1767922031687,3.84088552,138.27,138.23,7.91676793]
[1767922031889,0.32688273,138.27,138.23,7.91676793]
[1767922032367,3.84088552,138.27,138.23,7.91676793]
[1767922032982,0.65741626,138.26,138.23,7.91676793]
[1767922034185,4.17141905,138.26,138.23,7.91676793]
[1767922036384,0.33018806,138.25,138.21,7.23497556]
[1767922036690,3.51400279,138.24,138.21,0.68244832]
[1767922037792,3.51400279,138.23,138.21,0.68244832]
[1767922037970,0.23018806,138.26,138.21,0.68244832]
[1767922038174,3.51400279,138.24,138.21,0.68244832]
[1767922038792,4.17816428,138.24,138.2,20.43554981]
[1767922039296,3.68331706,138.21,138.18,0.1]
[1767922039481,3.51400279,138.2,138.18,0.1]
[1767922039680,0.66416149,138.23,138.18,0.1]
[1767922039897,3.51400279,138.23,138.18,3.61400279]
[1767922040199,4.17316633,138.23,138.18,13.3]
[1767922040371,3.51400279,138.21,138.18,13.3]
[1767922040574,3.68331706,138.22,138.18,13.3]
[1767922040896,3.51400279,138.21,138.18,13.98244832]
[1767922041582,3.67836909,138.24,138.19,0.68244832]
[1767922041787,4.17316633,138.23,138.19,0.68244832]
[1767922041986,4.17316633,138.23,138.19,7.91869442]
[1767922042195,3.51400279,138.22,138.19,7.91869442]
[1767922042689,3.51400279,138.22,138.19,0.68244832]
[1767922043203,3.51400279,138.23,138.2,0.68244832]
[1767922043770,3.51400279,138.24,138.2,0.68244832]
[1767922043982,3.51400279,138.24,138.2,7.91817743]
[1767922044196,3.51400279,138.24,138.21,0.68244832]
[1767922044702,0.66416149,138.25,138.21,0.68244832]
[1767922045598,3.51400279,138.25,138.21,0.68244832]
[1767922045799,0.66416149,138.26,138.23,0.68244832]
[1767922046008,11.41050474,138.27,138.23,0.68244832]
[1767922046177,0.65426505,138.23,138.19,24.63276606]
[1767922046377,0.65426505,138.23,138.19,21.11876327]
[1767922046698,3.51400279,138.25,138.21,0.68244832]
[1767922047014,0.1643663,138.25,138.21,0.68244832]
[1767922048109,10.91197215,138.25,138.21,0.68244832]
[1767922048293,0.65916354,138.24,138.21,0.68244832]
[1767922050414,7.89776455,138.25,138.21,7.9177788]
[1767922050582,11.41176734,138.25,138.21,7.9177788]
[1767922051616,11.41176734,138.25,138.21,0.68244832]
[1767922051799,3.67836909,138.24,138.2,13.88244832]
[1767922052177,3.67836909,138.24,138.2,21.11832113]
[1767922052983,0.1643663,138.24,138.2,21.11832113]
[1767922053181,0.65916354,138.23,138.2,13.2]
[1767922053378,4.17316633,138.23,138.19,0.67940564]
[1767922054001,4.16826784,138.21,138.18,0.1]
[1767922054287,0.67777986,138.22,138.18,8.01621715]
[1767922054481,0.67777986,138.22,138.19,0.70934951]
[1767922054984,7.23467736,138.23,138.19,0.70934951]
[1767922056009,10.92009518,138.23,138.19,0.70934951]
[1767922056195,3.68541782,138.23,138.19,7.94575099]
[1767922056391,0.17141503,138.23,138.19,0.70934951]
[1767922056603,0.17622274,138.21,138.18,0.1]
[1767922057613,4.17104435,138.22,138.18,0.80934951]
[1767922057979,11.40597759,138.22,138.18,0.80934951]
[1767922058488,10.14600936,138.22,138.18,0.80934951]
[1767922060381,25.31531241,138.26,138.19,0.65994518]
[1767922060581,25.31531241,138.26,138.2,0.65994518]
[1767922060582,7.56716274,138.25,138.2,0.65994518]
[1767922060781,5.31312818,138.24,138.2,13.85994518]
[1767922061006,0.71474263,138.24,138.2,13.85994518]
[1767922061501,0.71474263,138.24,138.2,16.11397974]
[1767922061810,0.71474263,138.24,138.21,0.65994518]
[1767922062297,0.71474263,138.24,138.21,7.89513694]
[1767922062496,2.96877719,138.26,138.21,0.65994518]
[1767922062818,6.03252134,138.25,138.21,7.8951933]
[1767922063118,0.71474263,138.25,138.21,7.8951933]
[1767922063318,5.31842844,138.24,138.21,7.8951933]
[1767922063504,0.71474263,138.25,138.21,7.8951933]
[1767922063702,0.71474263,138.25,138.22,0.65994518]
[1767922066009,0.71474263,138.25,138.22,7.89476196]
[1767922066613,7.94810051,138.25,138.22,0.65994518]
[1767922066922,5.32619788,138.24,138.22,0.65994518]
[1767922067130,7.94810051,138.25,138.22,0.65994518]
[1767922067327,5.32976566,138.24,138.22,0.65994518]
[1767922067613,0.71474263,138.25,138.22,0.65994518]
[1767922067924,5.32976992,138.24,138.22,0.65994518]
[1767922068221,0.71474263,138.25,138.22,0.65994518]
[1767922068417,6.04820365,138.24,138.2,21.09562449]
[1767922068614,6.04820365,138.23,138.2,21.09562449]
[1767922068920,0.71474263,138.23,138.2,21.09562449]
[1767922069416,0.71474263,138.24,138.21,7.2353105]
[1767922069720,5.33639638,138.23,138.21,7.89525568]
[1767922069917,0.71474263,138.24,138.21,7.89525568]
[1767922070220,5.33639638,138.23,138.21,7.89525568]
[1767922070417,0.71474263,138.24,138.21,7.89525568]
[1767922070608,5.34027717,138.23,138.21,7.89525568]
[1767922070917,0.71474263,138.24,138.21,7.89525568]
[1767922071109,5.34027717,138.23,138.21,7.89525568]
[1767922071410,5.34500377,138.22,138.21,7.89525568]
[1767922071918,0.71474263,138.24,138.21,7.89525568]
[1767922072114,5.34260803,138.23,138.21,7.89525568]
[1767922072294,5.34260803,138.22,138.21,7.89525568]
[1767922072496,5.34260803,138.22,138.21,0.65994518]
[1767922072914,5.34260803,138.23,138.21,0.65994518]
[1767922073123,5.34260803,138.22,138.21,0.65994518]
[1767922073545,5.34260803,138.23,138.21,0.65994518]
[1767922073705,5.34260803,138.22,138.21,0.65994518]
[1767922073902,0.71474263,138.24,138.21,0.65994518]
[1767922074219,5.34897013,138.23,138.21,0.65994518]
[1767922074419,0.71474263,138.24,138.21,0.65994518]
[1767922074622,5.34943797,138.23,138.21,0.65994518]
[1767922074813,0.71474263,138.24,138.21,0.65994518]
[1767922075112,5.34946339,138.23,138.21,0.65994518]
[1767922075313,0.71474263,138.24,138.21,0.65994518]
[1767922075500,5.35036704,138.23,138.21,0.65994518]
[1767922075701,0.71474263,138.24,138.21,0.65994518]
[1767922075925,5.34996442,138.23,138.21,0.65994518]
[1767922076229,5.3515318,138.22,138.21,0.65994518]
[1767922076527,5.3515318,138.22,138.2,21.09573993]
[1767922076826,0.71474263,138.24,138.2,21.09573993]
[1767922077126,5.35144046,138.23,138.2,21.09573993]
[1767922077418,0.71474263,138.24,138.2,21.09573993]
[1767922077598,5.16357878,138.23,138.2,21.09573993]
[1767922077800,0.71474263,138.24,138.2,21.09573993]
[1767922078009,5.16357878,138.23,138.2,21.09573993]
[1767922078327,0.71474263,138.23,138.2,21.09573993]
[1767922078828,0.71474263,138.23,138.2,0.65994518]
[1767922079019,0.71474263,138.23,138.2,13.85994518]
[1767922079717,7.94869745,138.24,138.21,0.65994518]
[1767922079925,5.16606246,138.23,138.21,0.65994518]
[1767922080136,7.94869745,138.24,138.21,0.65994518]
[1767922080306,5.16795637,138.23,138.21,0.65994518]
[1767922080506,7.94869745,138.24,138.21,0.65994518]
[1767922080707,5.16794375,138.23,138.21,0.65994518]
[1767922080909,7.94869745,138.24,138.21,0.65994518]
[1767922081108,5.16792534,138.23,138.21,0.65994518]
[1767922081317,7.94869745,138.24,138.21,0.65994518]
[1767922081524,5.16915446,138.23,138.21,0.65994518]
[1767922081722,0.71474263,138.24,138.21,0.65994518]
[1767922081914,5.16921758,138.23,138.21,0.65994518]
[1767922082114,0.71474263,138.24,138.21,0.65994518]
[1767922082317,5.1691869,138.23,138.21,0.65994518]
[1767922082629,0.71474263,138.24,138.21,0.65994518]
[1767922082827,5.16938101,138.23,138.21,0.65994518]
[1767922083031,0.71474263,138.24,138.21,0.65994518]
[1767922083222,5.17053489,138.23,138.21,0.65994518]
[1767922083424,0.71474263,138.24,138.21,0.65994518]
[1767922083621,5.8936656,138.23,138.2,21.10134874]
[1767922083858,0.72295604,138.23,138.2,21.10134874]
[1767922085339,7.95685555,138.24,138.21,0.66572428]
[1767922085526,5.17086941,138.23,138.21,0.66572428]
[1767922085733,7.95685555,138.24,138.21,0.66572428]
[1767922085932,5.17085934,138.23,138.21,0.66572428]
[1767922086132,7.95685555,138.24,138.21,0.66572428]
[1767922086341,5.1710538,138.23,138.21,0.66572428]
[1767922086545,7.95685555,138.24,138.21,0.66572428]
[1767922086723,5.17117821,138.23,138.21,0.66572428]
[1767922086922,10.21089011,138.24,138.21,0.66572428]
[1767922087129,5.171174,138.23,138.21,0.66572428]
[1767922087323,10.21089011,138.24,138.21,0.66572428]
[1767922087615,5.17131136,138.23,138.21,0.66572428]
[1767922087820,10.21089011,138.24,138.21,0.66572428]
[1767922088021,5.17130894,138.23,138.21,0.66572428]
[1767922088233,10.21089011,138.24,138.21,0.66572428]
[1767922088433,5.17133464,138.23,138.21,0.66572428]
[1767922088635,10.21089011,138.24,138.21,0.66572428]
[1767922088935,5.17121396,138.23,138.21,0.66572428]
[1767922089129,10.21089011,138.24,138.21,0.66572428]
[1767922089331,5.17111737,138.23,138.21,0.66572428]
[1767922089518,7.95685555,138.24,138.21,0.66572428]
[1767922089723,0.68648136,138.23,138.21,0.66572428]
[1767922090840,0.68648136,138.23,138.2,20.43585811]
[1767922091362,5.85763701,138.22,138.2,13.91253182]
[1767922091544,0.68648136,138.22,138.2,13.2]
[1767922092348,0.68648136,138.22,138.18,0.81253182]
[1767922092549,2.9350738,138.2,138.18,0.1]
[1767922092743,2.90623586,138.2,138.18,0.1]
[1767922093146,15.2,138.37,138.2,0.71253182]
[1767922093446,7.22804481,138.35,138.28,0.71253182]
[1767922093652,7.22804481,138.35,138.29,0.71253182]
[1767922093841,7.22804481,138.35,138.31,0.71253182]
[1767922094040,7.427526,138.36,138.32,0.71253182]
[1767922094246,0.2,138.36,138.32,0.71253182]
[1767922094640,0.2,138.36,138.33,0.71253182]
[1767922094842,0.2,138.36,138.33,0.65253184]
[1767922095041,0.2,138.37,138.34,2.25403456]
[1767922095349,0.2,138.39,138.36,2.19403461]
[1767922095552,0.2,138.39,138.36,2.25403456]
[1767922095746,2.94051592,138.44,138.38,2.25403456]
[1767922095946,2.25403456,138.43,138.39,13.2]
[1767922096455,0.68648136,138.44,138.39,13.14000002]
[1767922096456,2.94051592,138.44,138.39,13.14000002]
[1767922096651,2.94051592,138.44,138.39,15.39403458]
[1767922096836,2.94051592,138.44,138.4,0.71253182]
[1767922097032,2.94051592,138.44,138.4,0.65253184]
[1767922097231,0.68648136,138.43,138.39,13.2]
[1767922097433,2.94051592,138.43,138.39,13.2]
[1767922098354,2.94051592,138.42,138.39,13.2]
[1767922098555,0.68648136,138.42,138.39,13.2]
[1767922098867,2.94051592,138.42,138.39,13.2]
[1767922099358,0.68648136,138.42,138.39,13.2]
[1767922099557,2.94051592,138.41,138.38,13.2]
[1767922099749,2.94051592,138.4,138.35,0.71253182]
[1767922099949,0.68648136,138.39,138.37,13.2]
[1767922100346,2.25403456,138.4,138.37,13.91253182]
[1767922100657,2.94051592,138.4,138.37,13.91253182]
[1767922101238,2.94051592,138.4,138.37,0.71253182]
[1767922101437,0.68648136,138.4,138.37,0.71253182]
[1767922101638,2.94051592,138.4,138.37,0.71253182]
[1767922103960,0.2,138.49,138.4,0.71253182]
[1767922104158,2.6871666,138.51,138.43,10.97826931]
[1767922104350,0.68648136,138.53,138.47,6.6801107]
[1767922104553,7.21552781,138.59,138.54,4.25259466]
[1767922104860,0.2,138.63,138.55,0.48648136]
[1767922104861,7.21448668,138.61,138.55,0.48648136]
[1767922105063,18.23498574,138.62,138.55,0.48648136]
[1767922105064,7.41409642,138.62,138.55,0.48648136]
[1767922105262,2.25403456,138.6,138.55,0.48648136]
[1767922105465,7.41409642,138.62,138.55,0.48648136]
[1767922105649,0.2,138.62,138.58,2.74051592]
[1767922105854,0.2,138.62,138.59,13.2]
[1767922106061,2.45403456,138.62,138.59,13.2]
[1767922106263,0.2,138.62,138.59,13.2]
[1767922106447,0.2,138.62,138.59,20.41536358]
[1767922107459,0.2,138.62,138.59,20.90184494]
[1767922107658,0.2,138.62,138.59,26.61706333]
[1767922107965,0.2,138.63,138.6,0.48648136]
[1767922110161,0.2,138.63,138.6,7.70142619]
[1767922111966,0.2,138.63,138.59,7.50188705]
[1767922112173,0.2,138.63,138.61,13.18]
[1767922112553,6.40421931,138.62,138.57,0.28648136]
[1767922112758,6.40421931,138.62,138.6,13.18]
[1767922113158,0.2,138.63,138.6,13.18]
[1767922113359,6.60421931,138.63,138.6,13.18]
[1767922113562,0.88900092,138.63,138.6,13.18]
[1767922113750,6.60421931,138.63,138.6,13.18]
[1767922114569,0.88900092,138.63,138.6,13.18]
[1767922114748,12.92265133,138.69,138.62,5.71521839]
[1767922114949,1e-08,138.72,138.66,6.6801107]
[1767922115173,0.2,138.76,138.7,5.71521839]
[1767922115472,1e-08,138.75,138.71,13.18]
[1767922115655,0.2,138.77,138.72,0.68900091]
[1767922115855,7.20253529,138.84,138.75,0.68900091]
[1767922116045,5.71521839,138.79,138.76,13.18]